bitfinex/quotes_ETHUSD_20240709
["timestamp","ask_amount","ask_price","bid_price","bid_amount"]
[1720514684324,2.4836,3113.6,3112.9,3.407]
[1720514684544,2.4836,3113.6,3113.0,0.0638271]
[1720514684702,2.4836,3113.6,3113.0,6.21233]
[1720514685043,2.4836,3113.6,3113.2,3.21203]
[1720514685202,0.17566429,3114.7,3113.0,3.0]
[1720514685203,2.3693,3114.4,3113.4,3.21191]
[1720514685403,2.3693,3114.4,3113.5,3.06378817]
[1720514685742,2.3693,3114.4,3113.5,0.06378817]
[1720514685944,0.17566429,3114.1,3113.1,0.06381815]
[1720514686164,2.60623,3114.4,3113.0,3.407]
[1720514686165,2.3693,3114.4,3113.0,3.407]
[1720514686366,2.3693,3114.4,3114.2,3.21107]
[1720514686663,2.3382,3115.3,3114.1,0.0637768]
[1720514686982,2.3382,3115.3,3115.0,3.21025]
[1720514687262,2.3382,3115.3,3114.3,3.0]
[1720514687263,0.17566429,3115.1,3114.3,3.0]
[1720514687465,0.17566429,3115.1,3114.1,3.06375913]
[1720514687674,0.12566429,3115.1,3114.1,0.06375913]
[1720514687884,2.3382,3115.3,3114.1,0.06375913]
[1720514688178,2.69768429,3115.3,3114.1,0.06375913]
[1720514688325,2.69768429,3115.3,3114.2,3.21106]
[1720514688529,2.69768429,3115.3,3114.3,0.06374953]
[1720514689070,2.69768429,3115.3,3113.8,6.21145]
[1720514689071,0.12566429,3115.1,3114.1,0.06374953]
[1720514689359,0.12566429,3115.1,3113.0,3.21228]
[1720514689360,0.12566429,3114.6,3113.6,0.06376521]
[1720514689765,0.005,3114.3,3113.6,0.06376521]
[1720514690331,0.005,3114.3,3113.6,0.33353421]
[1720514690524,2.499,3114.2,3113.6,0.269769]
[1720514691143,2.499,3114.2,3113.7,0.0638197]
[1720514692740,2.87506429,3114.2,3113.6,0.269769]
[1720514693715,2.499,3114.2,3113.7,0.06382209]
[1720514693920,2.499,3114.2,3113.6,0.269769]
[1720514694470,2.62466429,3114.2,3113.6,0.269769]
[1720514694971,0.12566429,3114.0,3113.6,0.269769]
[1720514695170,0.12566429,3113.7,3113.6,0.269769]
[1720514695775,0.26246643,3114.0,3112.4,0.06385242]
[1720514695776,0.12566429,3113.3,3112.4,0.06385242]
[1720514696612,0.12566429,3113.3,3112.0,0.06386721]
[1720514697300,0.12566429,3113.3,3112.1,0.262466]
[1720514697471,0.12566429,3113.1,3112.2,0.0638806]
[1720514697967,2.3591,3113.0,3112.2,0.06388293]
[1720514698201,2.60757643,3113.0,3112.1,0.262466]
[1720514698510,2.60757643,3113.0,3112.2,0.06389342]
[1720514699715,2.60757643,3113.0,3112.1,0.262466]
[1720514699716,0.12566429,3112.8,3112.1,0.262466]
[1720514700006,0.12566429,3112.6,3112.1,0.262466]
[1720514700235,0.27332407,3112.8,3112.2,0.06391285]
[1720514700369,0.12566429,3112.9,3112.2,0.06391285]
[1720514700571,2.3591,3113.0,3112.2,0.06390112]
[1720514700990,2.3591,3113.0,3112.3,0.06390095]
[1720514701517,0.12566429,3114.1,3112.3,0.06390095]
[1720514701702,0.12566429,3113.6,3112.3,0.06390095]
[1720514702113,0.12566429,3112.9,3112.1,0.262466]
[1720514702412,0.12566429,3112.7,3112.1,0.262466]
[1720514702910,0.31307268,3113.7,3112.1,0.262466]
[1720514702911,2.3276,3112.4,3112.1,0.262466]
[1720514703114,0.12566429,3112.3,3112.1,0.262466]
[1720514703507,0.12566429,3112.3,3111.6,2.52240558]
[1720514703692,2.3276,3112.4,3111.6,2.52240558]
[1720514703888,0.12566429,3112.3,3111.6,2.52240558]
[1720514704281,0.12566429,3111.9,3111.6,2.52240558]
[1720514704510,0.32565011,3112.3,3111.6,2.52240558]
[1720514704511,0.12566429,3111.7,3111.6,2.52240558]
[1720514705617,0.12566429,3111.8,3111.6,2.52240558]
[1720514705830,0.12566429,3112.0,3111.6,2.52240558]
[1720514706135,0.12566429,3111.8,3111.6,2.52240558]
[1720514706512,2.3276,3112.4,3111.6,2.52240558]
[1720514706513,0.12566429,3112.0,3111.6,2.52240558]
[1720514706715,2.3276,3112.4,3111.7,0.06394868]
[1720514706917,2.3276,3112.4,3111.6,2.52240558]
[1720514706918,0.12566429,3112.2,3111.6,2.52240558]
[1720514707114,0.12566429,3112.2,3109.8,1.288516]
[1720514707115,0.12566429,3111.3,3109.8,1.288516]
[1720514707377,0.12566429,3110.4,3109.8,1.288516]
[1720514707668,0.12566429,3109.9,3109.0,0.06403142]
[1720514707811,0.12566429,3110.4,3109.0,0.06403142]
[1720514708213,0.12566429,3110.1,3109.0,0.06403142]
[1720514708461,0.12566429,3109.0,3108.8,0.0796216]
[1720514708663,2.4962,3109.7,3108.8,0.0796216]
[1720514708840,2.62186429,3109.7,3108.8,0.0796216]
[1720514709017,0.12566429,3109.5,3108.8,0.0796216]
[1720514709219,0.12566429,3109.2,3108.8,0.0796216]
[1720514709468,0.12566429,3109.0,3108.8,0.0796216]
[1720514709820,2.4537,3108.9,3108.8,0.0796216]
[1720514710034,0.12566429,3108.1,3106.5,0.06416358]
[1720514710251,0.12566429,3108.5,3106.7,0.3222]
[1720514710476,0.37528429,3109.6,3107.7,3.2178]
[1720514710608,2.4537,3109.7,3108.3,3.21717]
[1720514710809,2.4537,3109.7,3107.5,3.21794]
[1720514710810,2.4537,3109.7,3108.4,0.0640933]
[1720514711019,2.4537,3109.7,3108.4,3.2810733]
[1720514711213,2.4537,3109.7,3108.4,0.0640933]
[1720514711214,0.12566429,3109.4,3108.4,0.0640933]
[1720514711438,0.12566429,3109.6,3107.9,0.06411079]
[1720514711714,2.4537,3109.7,3107.9,0.06411079]
[1720514711715,0.12566429,3108.9,3107.9,0.06411079]
[1720514711952,0.12566429,3108.9,3107.9,0.0641422]
[1720514712166,0.12566429,3108.7,3107.5,0.06414217]
[1720514712360,0.12566429,3108.9,3107.5,0.06414217]
[1720514712516,0.12566429,3108.7,3107.5,0.06414217]
[1720514712912,0.12566429,3108.4,3107.5,0.06414217]
[1720514713113,0.12566429,3108.4,3106.8,6.4373]
[1720514713114,0.12566429,3108.1,3106.9,0.06417916]
[1720514713413,0.12566429,3108.3,3106.9,0.06417916]
[1720514713620,0.12566429,3108.1,3106.9,0.06417916]
[1720514714070,0.12566429,3107.9,3106.9,0.06417916]
[1720514714360,0.12566429,3107.5,3106.6,0.06420927]
[1720514714858,2.4766,3108.4,3107.2,3.21832]
[1720514715021,2.4766,3108.4,3106.8,0.06418136]
[1720514715022,0.12566429,3107.9,3106.8,0.06418136]
[1720514715358,1.5,3109.6,3106.4,0.3222]
[1720514715359,0.12566429,3107.2,3106.4,0.3222]
[1720514715559,0.12566429,3106.9,3106.2,1.289865]
[1720514715718,2.405,3107.1,3105.8,0.06427845]
[1720514715719,0.12566429,3106.7,3105.8,0.06427845]
[1720514715920,0.12566429,3106.5,3105.7,0.1131393]
[1720514716869,0.12566429,3106.3,3105.7,0.1131393]
[1720514717163,0.08047307,3107.0,3105.7,0.1131393]
[1720514717164,2.3916,3105.8,3105.7,0.1131393]
[1720514717378,2.76899072,3105.8,3105.7,0.1131393]
[1720514717527,2.76899072,3105.8,3104.2,0.06435694]
[1720514717528,0.12566429,3105.3,3104.2,0.06435694]
[1720514717723,0.12566429,3105.3,3104.1,3.22144]
[1720514717724,0.12566429,3105.3,3104.3,0.06436879]
[1720514718224,0.12566429,3105.7,3104.4,3.22114]
[1720514718425,2.3916,3105.8,3104.8,3.22072]
[1720514718650,2.3916,3105.8,3104.9,0.06432906]
[1720514718858,2.3916,3105.8,3104.8,3.22072]
[1720514719060,0.12566429,3105.5,3104.4,3.2855519]
[1720514719262,2.3916,3105.8,3103.7,3.28626086]
[1720514719263,0.12566429,3104.8,3103.7,3.28626086]
[1720514719464,0.12566429,3104.8,3103.8,0.06439584]
[1720514719637,0.12566429,3104.8,3103.7,0.06440302]
[1720514719836,0.31967889,3105.7,3103.5,3.22211]
[1720514719837,0.12566429,3104.6,3103.6,0.06440535]
[1720514720159,0.12566429,3104.6,3103.5,3.22211]
[1720514720160,0.12566429,3104.4,3103.5,0.06440825]
[1720514720377,0.12566429,3104.4,3102.9,1.291254]
[1720514720378,0.12566429,3104.0,3103.3,0.06443322]
[1720514720539,0.12566429,3103.7,3103.0,0.06443491]
[1720514720735,0.12566429,3103.9,3103.0,0.06443491]
[1720514720979,0.12566429,3103.9,3103.4,0.271128]
[1720514721269,2.73097,3104.3,3103.4,0.271128]
[1720514721270,0.12566429,3103.7,3103.4,0.271128]
[1720514721468,2.4827,3104.3,3102.7,0.1131393]
[1720514721469,0.12566429,3103.4,3102.7,0.1131393]
[1720514721763,0.12566429,3103.6,3102.9,0.271128]
[1720514721985,2.4827,3104.3,3103.0,0.06443587]
[1720514722268,2.4827,3104.3,3103.5,3.22208]
[1720514722465,2.4827,3104.3,3102.9,3.493818]
[1720514722466,0.12566429,3104.0,3102.9,3.493898]
[1720514722636,2.4827,3104.3,3102.9,3.493898]
[1720514722637,0.12566429,3103.7,3102.9,3.493898]
[1720514723379,0.12566429,3103.5,3102.9,0.271128]
[1720514724010,0.12566429,3103.2,3102.9,0.271128]
[1720514724486,2.2965,3103.1,3102.9,0.271128]
[1720514724645,2.2965,3103.1,3102.7,0.1131393]
[1720514725657,0.12566429,3102.8,3102.7,0.1131393]
[1720514726702,0.12566429,3101.7,3099.3,3.22644]
[1720514726898,0.12566429,3101.8,3100.8,3.22489]
[1720514727067,0.12566429,3101.8,3100.9,4.58143014]
[1720514727262,0.12566429,3101.5,3100.9,1.292095]
[1720514727657,2.379,3101.7,3101.1,3.22456]
[1720514727844,0.12566429,3102.4,3101.5,3.22423]
[1720514728070,0.12566429,3102.4,3101.6,3.28853205]
[1720514728246,0.12566429,3102.4,3099.9,4.78133571]
[1720514728247,0.12566429,3103.4,3101.3,3.22439]
[1720514728452,0.12566429,3103.6,3102.8,3.22279]
[1720514728699,0.12566429,3103.6,3102.6,3.22307]
[1720514728883,0.12566429,3103.8,3102.7,0.06444387]
[1720514729055,0.12566429,3103.8,3102.8,0.55]
[1720514729257,0.12566429,3103.8,3103.2,3.22247]
[1720514729483,0.12566429,3103.8,3103.3,0.06443461]
[1720514729685,2.70015527,3103.9,3103.3,0.06443461]
[1720514730009,2.70015527,3103.9,3103.1,3.22257]
[1720514730211,0.12566429,3103.8,3102.9,3.22273]
[1720514730501,2.70015527,3103.9,3103.0,0.61443794]
[1720514730663,2.70015527,3103.9,3103.4,3.22219]
[1720514731062,2.70015527,3103.9,3102.8,3.77282]
[1720514731063,0.12566429,3103.8,3102.8,0.55]
[1720514731315,0.12566429,3103.5,3102.7,3.0]
[1720514731498,0.12566429,3103.5,3102.9,0.06444099]
[1720514731702,2.70015527,3103.9,3103.0,3.22268]
[1720514731908,2.70015527,3103.9,3103.3,3.22234]
[1720514732107,2.70015527,3103.9,3103.5,3.2221]
[1720514732309,2.70015527,3103.9,3103.4,0.06443175]
[1720514732310,2.70015527,3103.9,3103.4,3.28670175]
[1720514732594,2.70015527,3103.9,3103.5,3.22216]
[1720514732778,0.33735527,3103.9,3103.8,6.4437]
[1720514732988,0.33735527,3103.9,3103.8,10.27995532]
[1720514733294,2.3489,3105.3,3104.8,3.22076]
[1720514733504,2.3489,3106.1,3104.9,0.61436023]
[1720514733707,2.47456429,3106.1,3105.4,3.22012]
[1720514733859,0.33716121,3106.0,3105.5,0.06432101]
[1720514734058,0.33716121,3106.0,3104.6,6.22096]
[1720514734059,0.12566429,3105.5,3104.6,3.0]
[1720514734288,0.12566429,3105.3,3104.5,3.2211]
[1720514734495,0.12566429,3105.0,3104.1,3.22154]
[1720514734698,0.08051253,3106.0,3102.8,7.97889]
[1720514734699,0.12566429,3104.7,3104.3,3.22125]
[1720514734898,0.46289378,3105.6,3104.4,0.06437669]
[1720514735196,2.3489,3106.1,3104.4,3.28560669]
[1720514735197,0.12566429,3105.3,3104.4,3.28560669]
[1720514735405,0.12566429,3105.3,3104.0,3.0]
[1720514735406,0.12566429,3104.6,3103.5,0.06437846]
[1720514735554,2.39846429,3104.6,3103.5,3.28646846]
[1720514735752,2.39846429,3104.6,3103.9,3.22173]
[1720514736155,2.2728,3104.6,3104.0,3.22156]
[1720514736358,2.2728,3104.6,3104.3,3.22132]
[1720514736590,0.12566429,3105.8,3104.4,0.06440649]
[1720514736795,2.4696,3106.3,3104.4,3.0]
[1720514736796,0.12566429,3105.3,3104.4,3.0]
[1720514737001,0.12566429,3105.1,3104.4,3.0]
[1720514737167,0.12566429,3105.1,3104.0,3.22159]
[1720514737369,0.12566429,3104.9,3104.1,3.55]
[1720514737698,0.12566429,3104.9,3104.2,3.22142]
[1720514737993,0.12566429,3104.9,3104.2,3.22143]
[1720514738184,2.59596429,3105.2,3104.3,0.06439466]
[1720514738354,2.59596429,3105.2,3104.1,3.55]
[1720514738355,0.12566429,3104.9,3104.1,6.77153]
[1720514738558,2.4703,3105.2,3104.4,3.22123]
[1720514738559,0.12566429,3105.1,3104.4,3.22123]
[1720514738760,2.4703,3105.2,3104.4,3.22123]
[1720514738761,2.4703,3105.2,3104.4,3.28560966]
[1720514738985,0.12566429,3105.1,3104.4,0.06437966]
[1720514739314,2.4703,3105.2,3104.3,3.06437971]
[1720514739456,2.55456429,3106.0,3105.0,3.22051]
[1720514739657,2.55456429,3106.0,3105.1,3.28484183]
[1720514740014,2.55456429,3106.0,3105.3,3.22022]
[1720514740292,2.55456429,3106.0,3105.4,0.06432636]
[1720514740798,2.55456429,3106.0,3105.2,0.55]
[1720514741004,2.55456429,3106.0,3105.1,3.22044]
[1720514741204,0.12566429,3105.4,3104.9,3.0]
[1720514741501,0.12566429,3105.4,3104.7,3.0]
[1720514741670,0.12566429,3105.4,3104.6,6.22102]
[1720514742059,0.12566429,3105.2,3104.6,3.0]
[1720514742256,0.12566429,3105.2,3103.8,3.22181]
[1720514742494,0.12566429,3105.2,3104.2,3.2214]
[1720514742682,0.26843564,3105.8,3104.0,3.22164]
[1720514742683,0.12566429,3104.8,3104.0,3.22164]
[1720514742890,0.12566429,3104.8,3104.0,3.22162]
[1720514742891,0.12566429,3104.6,3104.0,3.22162]
[1720514743913,2.475,3104.8,3104.1,0.06440863]
[1720514744214,2.2845,3105.5,3104.7,3.22091]
[1720514744516,0.12566429,3105.4,3104.8,3.28515412]
[1720514744699,2.2845,3105.5,3104.8,3.28515412]
[1720514744998,0.12566429,3105.4,3104.2,3.2214]
[1720514745220,2.51295,3105.5,3104.4,3.22114]
[1720514745357,2.2845,3105.5,3104.5,3.28547491]
[1720514745565,0.12566429,3105.1,3104.5,0.06437491]
[1720514745861,2.41016429,3105.5,3104.6,3.22093]
[1720514746094,0.12566429,3105.3,3104.7,0.06436621]
[1720514746292,0.12566429,3105.3,3104.5,3.22102]
[1720514746497,0.12566429,3104.9,3104.3,3.2213]
[1720514746800,0.12566429,3104.9,3103.8,3.22181]
[1720514747108,0.12566429,3104.9,3104.1,3.22153]
[1720514747999,0.12566429,3104.9,3103.9,0.55]
[1720514748000,0.12566429,3105.3,3104.2,3.83582913]
[1720514748201,2.51295,3105.5,3104.4,3.22117]
[1720514748202,0.12566429,3105.1,3104.4,3.22117]
[1720514748385,0.12566429,3105.1,3104.5,0.06438039]
[1720514748999,0.12566429,3105.1,3104.4,3.22117]
[1720514749173,0.12566429,3104.9,3104.1,3.22153]
[1720514749364,0.12566429,3104.9,3104.3,3.2213]
[1720514750325,0.12566429,3104.9,3104.0,3.28599046]
[1720514750326,0.12566429,3104.9,3104.1,3.22152]
[1720514750494,0.12566429,3104.9,3103.5,3.22214]
[1720514750495,0.12566429,3104.5,3103.7,3.22187]
[1720514750895,0.33181196,3105.4,3102.1,2.4442]
[1720514750896,0.12566429,3104.1,3102.1,2.4442]
[1720514751139,0.12566429,3104.1,3103.4,3.22227]
[1720514751341,0.12566429,3104.1,3103.5,0.06442873]
[1720514751635,0.12566429,3103.9,3103.0,3.22266]
[1720514751932,2.2755,3104.4,3102.5,3.28757167]
[1720514751933,0.12566429,3103.5,3102.5,3.28757167]
[1720514752096,0.22755,3104.3,3102.6,0.06444809]
[1720514752097,0.12566429,3103.3,3102.6,0.06444809]
[1720514752298,0.12566429,3104.0,3102.9,3.22272]
[1720514752495,0.12566429,3104.0,3103.1,3.2225]
[1720514752730,0.12566429,3104.0,3103.2,0.06443255]
[1720514753243,0.12566429,3104.0,3103.1,3.2225]
[1720514753244,0.12566429,3104.0,3103.3,3.28679258]
[1720514753532,0.12566429,3103.4,3102.5,3.22318]
[1720514753736,0.12566429,3103.4,3102.7,3.22298]
[1720514754095,0.12566429,3103.5,3102.8,0.06444214]
[1720514754352,0.12566429,3103.4,3102.8,0.06444214]
[1720514754565,0.12566429,3103.6,3102.8,0.0644423]
[1720514754717,0.12566429,3103.6,3102.9,3.22277]
[1720514754913,0.250305,3104.2,3102.2,3.54563]
[1720514754914,0.12566429,3103.2,3102.4,3.22324]
[1720514755220,2.4322,3103.2,3102.4,3.22328]
[1720514755622,2.4322,3103.2,3102.5,3.0]
[1720514756744,2.4322,3103.2,3102.6,0.06444973]
[1720514756902,2.4322,3103.2,3102.7,3.22293]
[1720514757100,2.4322,3103.2,3102.2,0.06444599]
[1720514757415,2.4322,3103.2,3102.2,3.22344]
[1720514757738,2.4322,3103.2,3102.3,3.0]
[1720514758336,2.4322,3103.2,3102.3,6.22341]
[1720514758502,2.4322,3103.2,3102.4,3.22324]
[1720514758702,2.4322,3103.2,3102.5,3.06444968]
[1720514758999,2.4322,3103.2,3102.5,3.0]
[1720514759234,2.4322,3103.2,3101.4,1.291836]
[1720514759431,0.08057333,3103.1,3101.8,3.22389]
[1720514759605,2.67542,3103.2,3101.8,3.22389]
[1720514759806,2.67542,3103.2,3101.9,0.06446179]
[1720514760040,2.67542,3103.2,3102.0,3.22362]
[1720514760041,2.4322,3103.2,3102.0,3.22362]
[1720514760335,2.4322,3103.2,3102.3,3.22335]
[1720514760544,2.4322,3103.2,3101.9,3.22372]
[1720514760747,2.67542,3103.2,3102.0,3.0]
[1720514760956,2.4322,3103.2,3102.3,3.2234]
[1720514761103,2.4322,3103.2,3102.0,3.0]
[1720514761303,0.08057175,3103.1,3101.4,3.22433]
[1720514761509,0.25127717,3103.0,3101.4,3.22433]
[1720514761812,0.25127717,3103.0,3101.5,3.28871127]
[1720514762140,2.4322,3103.2,3102.1,3.22361]
[1720514762303,2.4322,3103.2,3102.2,3.28787668]
[1720514762503,2.4322,3103.2,3101.7,3.22396]
[1720514762814,2.4322,3103.2,3102.3,3.22333]
[1720514763213,2.4322,3103.2,3101.9,0.0644509]
[1720514763447,0.24322,3103.1,3101.7,6.22397]
[1720514763737,2.4322,3103.2,3102.2,3.22351]
[1720514764308,2.4322,3103.2,3101.8,3.22388]
[1720514764507,2.4322,3103.2,3101.9,3.0]
[1720514764707,2.4322,3103.2,3102.2,3.22351]
[1720514765202,2.4322,3103.2,3102.0,3.22362]
[1720514765407,2.4322,3103.2,3101.9,3.0]
[1720514765631,2.4322,3103.2,3101.7,0.06445726]
[1720514765815,2.67542,3103.2,3101.9,3.2238]
[1720514766034,2.67542,3103.2,3101.8,0.55]
[1720514766246,3.01282672,3103.2,3101.7,3.22396]
[1720514766418,0.38186602,3103.1,3101.3,3.22441]
[1720514766618,0.38186602,3103.1,3101.2,3.2245]
[1720514766822,2.76960672,3103.2,3100.5,9.77220158]
[1720514766823,2.76960672,3103.2,3101.6,3.22411]
[1720514767143,2.76960672,3103.2,3101.3,0.06447503]
[1720514767144,2.4322,3103.2,3102.1,3.2236]
[1720514767358,2.4322,3103.2,3102.5,3.22313]
[1720514767505,2.60941566,3103.8,3102.6,0.06444842]
[1720514767706,2.60941566,3103.8,3103.0,3.22267]
[1720514767909,2.60941566,3103.8,3103.1,3.28700085]
[1720514768108,2.272,3103.8,3103.1,3.28700085]
[1720514768329,2.272,3103.8,3103.3,3.22236]
[1720514768563,2.272,3103.8,3102.7,0.06443628]
[1720514768884,0.30774536,3103.7,3102.5,3.22319]
[1720514769347,0.30774536,3103.7,3102.3,3.2234]
[1720514769505,2.3288,3103.6,3101.3,8.721909]
[1720514769711,0.08058274,3103.5,3101.4,3.22434]
[1720514769939,0.08058274,3103.5,3101.6,3.22405]
[1720514770141,0.08058274,3103.5,3101.6,3.22413]
[1720514770355,2.3288,3103.3,3101.7,3.22395]
[1720514770712,2.350326,3103.3,3101.8,0.06446619]
[1720514770911,2.350326,3103.3,3102.1,3.22353]
[1720514771244,2.350326,3103.3,3102.2,3.28796558]
[1720514771465,0.31561039,3103.2,3101.7,3.22396]
[1720514771751,0.22481039,3103.2,3101.5,3.22421]
[1720514772105,0.1442326,3103.2,3101.6,3.22406]
[1720514772308,0.24945586,3103.1,3101.6,3.22406]
[1720514772667,2.42868643,3103.0,3101.3,3.22443]
[1720514772820,2.42868643,3103.0,3101.1,3.22465]
[1720514773028,2.42868643,3103.0,3101.4,3.22433]
[1720514773338,1.13850661,3102.9,3101.4,3.22431]
[1720514773660,0.28934023,3102.9,3101.6,3.22411]
[1720514774228,0.28934023,3102.9,3101.5,3.22423]
[1720514774434,0.26374402,3102.8,3101.5,3.22423]
[1720514775253,0.26374402,3102.8,3101.6,3.22412]
[1720514775548,0.021526,3102.9,3101.7,0.06447025]
[1720514775750,0.021526,3102.9,3101.6,3.22412]
[1720514775961,0.021526,3102.9,3101.4,3.22426]
[1720514776180,0.021526,3102.9,3101.0,3.22474]
[1720514776433,2.3951,3102.6,3100.7,2.226]
[1720514776541,2.3951,3102.4,3100.7,3.225]
[1720514776746,1.19780064,3102.3,3100.7,3.225]
[1720514776971,0.10213422,3102.3,3100.7,3.22498]
[1720514777146,1.11719483,3102.2,3100.7,3.22498]
[1720514777341,0.08060824,3102.1,3100.7,3.22498]
[1720514777545,2.3632,3102.0,3100.3,3.2254]
[1720514777844,0.32499682,3101.9,3100.5,3.22527]
[1720514778152,2.3632,3101.8,3100.1,3.22562]
[1720514778349,0.08062821,3101.7,3100.2,0.06450256]
[1720514778550,2.44382821,3101.8,3100.2,0.06450256]
[1720514778752,2.3632,3101.6,3099.7,3.22607]
[1720514778995,0.31694672,3101.7,3099.7,3.22607]
[1720514778996,2.3632,3101.4,3099.7,3.22607]
[1720514779296,0.08063559,3101.3,3099.7,3.22605]
[1720514779581,0.23632,3101.3,3099.7,3.22606]
[1720514779877,0.23632,3101.3,3099.9,3.2259]
[1720514780082,2.3632,3101.4,3100.1,3.22561]
[1720514780300,2.3632,3101.4,3100.0,3.0]
[1720514780500,2.2549,3102.2,3101.0,3.22473]
[1720514780782,2.33549884,3102.2,3099.8,7.43]
[1720514780940,2.33549884,3102.2,3099.4,6.46126151]
[1720514780941,2.2549,3102.1,3099.9,0.0645002]
[1720514781146,1.13891578,3102.0,3100.4,3.22529]
[1720514781346,2.2549,3102.1,3100.3,3.28997501]
[1720514781347,1.13909419,3101.9,3100.3,3.28997501]
[1720514781580,1.11730337,3101.8,3100.5,6.4504]
[1720514781886,0.02179082,3101.9,3100.9,3.22484]
[1720514782094,0.02179082,3101.9,3101.0,3.22476]
[1720514782389,0.02179082,3101.9,3100.8,3.22491]
[1720514782745,0.02179082,3101.9,3100.2,3.22553]
[1720514782746,0.02179082,3101.8,3100.2,3.22553]
[1720514783066,1.11735855,3101.7,3100.1,3.2256]
[1720514783239,1.11735855,3101.7,3100.3,3.22548]
[1720514783443,2.4651,3101.8,3100.5,3.22526]
[1720514783673,2.4651,3101.8,3100.9,3.22484]
[1720514783879,2.4651,3101.8,3100.7,3.22506]
[1720514784096,2.4651,3101.8,3100.9,3.22479]
[1720514784254,2.4651,3101.8,3100.9,3.22477]
[1720514784454,2.4651,3101.8,3100.7,3.22505]
[1720514784697,2.4651,3101.8,3100.4,3.22536]
[1720514784900,2.4651,3101.8,3100.6,3.22515]
[1720514785071,2.4651,3101.8,3100.3,3.0]
[1720514785267,1.11742724,3101.7,3100.3,6.22547]
[1720514785501,0.08062747,3101.6,3100.0,3.22575]
[1720514785661,2.4797,3101.5,3100.1,3.22568]
[1720514785861,2.4797,3101.5,3100.2,0.06450571]
[1720514786068,2.4797,3101.5,3100.8,3.22491]
[1720514786565,2.4797,3101.5,3100.9,3.22479]
[1720514786961,2.4797,3101.5,3101.0,3.22476]
[1720514787162,2.4797,3101.5,3100.9,3.22479]
[1720514787905,2.4797,3101.5,3100.5,3.22525]
[1720514788200,2.4797,3101.5,3100.6,3.2251]
[1720514788398,2.4797,3101.5,3100.4,3.0]
[1720514788576,2.4797,3101.5,3100.5,3.22527]
[1720514789404,2.4797,3101.5,3100.8,3.22494]
[1720514789559,2.4797,3101.5,3100.9,3.0644881]
[1720514789759,2.3059,3102.4,3101.6,3.22408]
[1720514789982,2.3059,3102.4,3101.6,3.22406]
[1720514790189,2.3059,3102.4,3101.6,3.22412]
[1720514790584,2.3059,3102.4,3101.7,3.22403]
[1720514791007,2.3059,3102.4,3101.4,3.2243]
[1720514791304,2.3059,3102.4,3101.0,3.0]
[1720514791305,2.3059,3102.4,3101.6,3.22414]
[1720514791496,2.3059,3102.4,3102.0,3.22364]
[1720514791661,2.3059,3102.4,3102.0,3.22363]
[1720514791961,2.3059,3102.4,3101.8,3.28834965]
[1720514792165,2.3059,3102.4,3101.8,3.22392]
[1720514792416,2.3059,3102.4,3102.0,3.22362]
[1720514792710,2.3073,3103.5,3102.3,3.22339]
[1720514792860,2.38787145,3103.5,3102.5,3.2232]
[1720514793305,2.3073,3103.5,3102.5,3.22317]
[1720514793807,0.08056892,3103.4,3102.5,3.22317]
[1720514794018,2.3073,3103.5,3102.6,3.22309]
[1720514794512,2.3073,3103.5,3102.6,3.22306]
[1720514794865,2.3073,3103.5,3102.7,3.22299]
[1720514795325,2.38786728,3103.5,3102.3,3.22338]
[1720514795479,2.38786728,3103.5,3102.5,3.22313]
[1720514795816,2.3073,3103.5,3102.6,3.22307]
[1720514795981,2.3073,3103.5,3102.7,3.22297]
[1720514796181,2.3073,3103.5,3102.8,3.22288]
[1720514796604,2.3073,3103.5,3102.9,3.22276]
[1720514798031,2.3073,3103.5,3103.0,3.22265]
[1720514798327,2.3787,3104.2,3103.2,3.22247]
[1720514798780,2.3787,3104.2,3103.3,3.22236]
[1720514799282,2.3787,3104.2,3102.5,6.22314]
[1720514799283,0.08055096,3104.1,3103.0,3.22264]
[1720514799488,0.08055096,3104.1,3103.2,3.22242]
[1720514799899,2.3787,3104.2,3103.2,3.22242]
[1720514800081,0.08055064,3104.1,3103.4,3.22226]
[1720514800427,0.08055064,3104.1,3102.5,6.22317]
[1720514800587,0.08055064,3104.1,3102.7,3.22297]
[1720514800791,2.4672,3104.0,3102.0,2.224]
[1720514801033,0.08057418,3103.9,3102.0,5.44768]
[1720514801321,2.3792,3103.6,3101.5,2.224]
[1720514801531,0.23792,3103.5,3102.4,3.22329]
[1720514801724,0.08057467,3103.4,3102.2,3.22342]
[1720514801938,0.23792,3103.5,3102.4,3.22328]
[1720514802521,0.0805661,3104.2,3103.2,3.2224]
[1720514802683,0.08055572,3104.1,3103.1,3.22255]
[1720514803207,2.53396,3104.3,3103.4,3.22222]
[1720514803412,0.08054815,3104.2,3103.4,3.22222]
[1720514803599,0.08054815,3104.2,3103.2,3.22246]
[1720514804421,0.08054815,3104.2,3103.0,3.22262]
[1720514804625,2.4198,3104.0,3102.5,3.0]
[1720514804844,2.3273,3103.7,3102.0,5.44771]
[1720514805137,2.3273,3103.4,3101.9,3.22375]
[1720514805336,2.3273,3103.4,3102.0,3.22365]
[1720514805337,0.23273,3103.3,3102.0,3.22365]
[1720514805536,0.08058463,3103.2,3101.8,3.22385]
[1720514806439,0.23273,3103.3,3102.1,3.22361]
[1720514806602,2.3273,3103.4,3102.5,3.2232]
[1720514806805,2.3273,3103.4,3101.9,3.22382]
[1720514806806,2.3273,3103.4,3102.4,3.22329]
[1720514807050,0.31330345,3103.3,3102.0,3.2237]
[1720514807215,2.3698,3103.2,3101.6,3.22405]
[1720514807552,2.3698,3103.2,3101.4,3.22429]
[1720514807553,2.3698,3103.0,3101.4,3.22427]
[1720514807727,0.08059635,3102.9,3101.6,3.22413]
[1720514807907,0.24503964,3102.9,3101.6,3.22413]
[1720514808104,0.24503964,3102.9,3101.2,7.43]
[1720514808308,0.08058594,3102.8,3101.7,3.22397]
[1720514808559,0.08058594,3102.8,3101.6,3.22413]
[1720514809001,2.3698,3103.0,3101.8,3.2239]
[1720514809210,0.24503964,3102.9,3101.8,3.2239]
[1720514809434,0.0805887,3102.8,3101.8,3.2239]
[1720514810218,0.0805887,3102.8,3101.9,3.22381]
[1720514810845,0.24503964,3102.9,3101.9,3.22381]
[1720514811257,0.24503964,3102.9,3101.5,3.22423]